bitfinex/quotes_ETHUSD_20250223
["timestamp","ask_amount","ask_price","bid_price","bid_amount"]
[1740284142567,0.13845289,2754.5,2754.2,3.63078]
[1740284143239,0.13845289,2754.5,2754.1,0.259]
[1740284143455,4.17572921,2754.8,2754.1,0.259]
[1740284143628,0.13853309,2754.7,2754.4,0.8226]
[1740284143836,0.13853309,2754.7,2754.4,4.45308]
[1740284144033,4.40509,2755.0,2754.4,4.45308]
[1740284144459,0.1386667,2754.9,2754.4,4.45308]
[1740284146664,0.1386667,2754.9,2754.5,3.63041]
[1740284150271,0.1386667,2754.9,2754.4,0.8226]
[1740284150577,3.7685667,2754.9,2754.4,0.8226]
[1740284151774,0.1386667,2754.9,2754.4,0.8226]
[1740284152386,0.1386667,2754.9,2754.2,9.02072]
[1740284152687,3.63081,2754.2,2753.6,0.8226]
[1740284152832,3.63081,2754.2,2753.5,5.39]
[1740284152833,3.76946608,2754.1,2753.5,3.89066]
[1740284153033,0.7753,2754.0,2753.6,3.63156]
[1740284153346,3.63136,2753.8,2753.5,1.373519]
[1740284153663,0.1382121,2753.7,2753.4,0.259]
[1740284153855,3.63136,2753.8,2753.4,0.259]
[1740284154051,0.1382121,2753.7,2753.4,0.259]
[1740284154264,3.63136,2753.8,2753.4,0.259]
[1740284154446,0.1382121,2753.7,2753.4,0.259]
[1740284154647,3.40042921,2753.9,2753.4,2.010949]
[1740284154845,0.13825223,2753.8,2753.4,2.010949]
[1740284155052,0.7753,2754.0,2753.5,3.63163]
[1740284155265,0.13787164,2753.9,2753.5,3.63163]
[1740284159833,0.13787164,2753.9,2753.7,3.63147]
[1740284160034,0.13787164,2753.9,2753.8,4.905837]
[1740284160369,0.13286069,2753.9,2753.8,4.905837]
[1740284160759,3.6305,2754.5,2753.8,4.905837]
[1740284160956,0.13249135,2753.9,2753.8,4.905837]
[1740284161155,3.6305,2754.5,2753.9,3.63112]
[1740284161411,6.0219,2754.6,2754.0,3.63097]
[1740284162082,9.65219,2754.6,2754.0,3.63097]
[1740284162582,4.41219,2754.6,2754.0,3.63097]
[1740284163491,0.7819,2754.6,2753.9,3.63121]
[1740284163692,0.7819,2754.6,2754.2,3.63079]
[1740284163907,0.7819,2754.6,2754.2,7.26151]
[1740284164113,0.7819,2754.6,2754.2,8.09001]
[1740284164316,0.7819,2754.6,2754.2,4.45922]
[1740284164617,4.41259,2754.3,2753.6,9.85003]
[1740284164803,0.7819,2754.3,2753.7,0.259]
[1740284165015,0.13312302,2754.2,2753.7,0.259]
[1740284165233,0.13312302,2754.2,2753.9,3.6311]
[1740284165396,4.41226,2754.6,2753.9,3.6311]
[1740284165592,4.41226,2754.6,2754.0,3.63108]
[1740284165894,0.7819,2754.6,2754.2,3.63078]
[1740284166097,4.18232921,2754.8,2754.3,3.63059]
[1740284166349,4.18232921,2754.8,2754.4,3.63048]
[1740284166548,4.18232921,2754.8,2754.4,3.63045]
[1740284166549,0.7819,2754.8,2754.4,3.63045]
[1740284166847,0.7819,2755.0,2754.6,3.63025]
[1740284167000,0.7819,2755.0,2754.6,4.45875]
[1740284167720,3.40042921,2755.1,2754.8,3.62994]
[1740284167926,3.40042921,2755.1,2754.6,4.45876]
[1740284167927,0.7819,2755.3,2754.9,3.62986]
[1740284168232,0.13347058,2755.0,2754.9,3.62982]
[1740284168439,0.7819,2755.3,2754.9,4.35581]
[1740284168634,0.7819,2755.3,2754.9,3.62982]
[1740284168939,3.62906,2755.6,2755.1,0.8285]
[1740284168940,4.41087,2755.6,2755.1,0.8285]
[1740284170034,3.62914,2755.5,2755.1,0.8285]
[1740284170232,4.41087,2755.6,2754.9,8.08808]
[1740284170560,4.41087,2755.6,2755.0,3.62973]
[1740284171736,0.13388464,2755.5,2755.0,3.62973]
[1740284172668,0.13388464,2755.5,2755.0,3.62969]
[1740284173348,0.13388464,2755.5,2755.1,3.62961]
[1740284173664,0.13388464,2755.5,2755.3,4.45778]
[1740284173950,7.02913921,2755.8,2755.3,4.45778]
[1740284174153,0.13422499,2755.4,2755.3,4.45778]
[1740284174356,3.40042921,2755.8,2755.3,4.45778]
[1740284174514,0.13422499,2755.4,2755.3,8.08705]
[1740284174719,4.22102921,2756.1,2755.3,1.896205]
[1740284175050,3.6286,2755.9,2755.4,3.62923]
[1740284175249,3.40042921,2755.8,2755.3,1.0875]
[1740284175556,7.15880538,2755.8,2755.3,1.0875]
[1740284176052,0.8206,2755.6,2755.2,0.259]
[1740284176252,0.8206,2755.6,2755.5,0.7373915]
[1740284178653,7.86227921,2755.8,2755.5,0.7373915]
[1740284178854,4.23352921,2755.8,2755.5,0.7373915]
[1740284179055,0.1295161,2755.7,2755.5,0.7373915]
[1740284179254,4.23352921,2755.8,2755.5,0.7373915]
[1740284179647,0.1295161,2755.7,2755.5,0.7373915]
[1740284179846,7.86225921,2755.8,2755.5,0.7373915]
[1740284180227,0.1295161,2755.7,2755.5,0.7373915]
[1740284180547,7.86225921,2755.8,2755.5,0.7373915]
[1740284180746,0.12917803,2755.6,2755.5,0.7373915]
[1740284180960,3.62894,2755.7,2755.5,0.7373915]
[1740284181184,0.12917803,2755.6,2755.5,0.7373915]
[1740284184483,7.86227921,2755.8,2755.5,0.7373915]
[1740284184782,0.1292181,2755.7,2755.5,0.7373915]
[1740284185184,7.86227921,2755.8,2755.5,0.7373915]
[1740284185794,0.1292181,2755.7,2755.5,0.7373915]
[1740284185950,0.1292181,2755.7,2755.2,7.51784]
[1740284186152,7.86227921,2755.8,2755.3,1.48198367]
[1740284186384,0.12917803,2755.6,2755.3,0.751784]
[1740284186582,0.12947831,2755.7,2755.3,0.751784]
[1740284186785,0.12923112,2755.5,2755.3,0.751784]
[1740284186997,7.86227921,2755.8,2755.3,0.751784]
[1740284187198,0.129024,2755.4,2755.3,0.751784]
[1740284187493,7.86227921,2755.8,2755.3,0.751784]
[1740284187650,7.86227921,2755.8,2755.2,7.51784]
[1740284187856,0.12894582,2755.7,2755.2,7.51782]
[1740284188056,3.75779582,2755.7,2755.2,4.60371581]
[1740284189196,3.75779582,2755.7,2755.2,8.23313581]
[1740284189396,3.75779582,2755.7,2755.2,4.60371581]
[1740284189702,3.75779582,2755.7,2755.2,5.14587739]
[1740284190209,3.75779582,2755.7,2755.2,8.77529739]
[1740284190596,3.75779582,2755.7,2755.2,5.14587739]
[1740284191055,3.75779582,2755.7,2755.2,8.77528739]
[1740284192009,3.75779582,2755.7,2755.2,5.14587739]
[1740284194587,3.62912,2755.5,2755.2,0.97430581]
[1740284194800,3.62912,2755.5,2755.0,0.8179]
[1740284194962,4.5178356,2755.4,2755.1,0.259]
[1740284196203,4.5178356,2755.4,2755.0,0.71537849]
[1740284196406,3.62963,2755.1,2754.5,6.1494]
[1740284196606,3.62998,2754.9,2754.5,6.1494]
[1740284196811,3.63016,2754.7,2754.5,5.39]
[1740284197129,0.12881282,2754.6,2754.5,5.39]
[1740284197710,3.63007,2754.8,2754.5,5.39]
[1740284198019,3.75890271,2754.7,2754.5,5.39]
[1740284198520,3.63047,2754.5,2754.3,0.259]
[1740284199068,0.1285124,2754.4,2754.3,0.259]
[1740284200337,0.1285124,2754.4,2754.2,7.414]
[1740284200338,3.63068,2754.3,2754.1,5.39]
[1740284200502,3.63081,2754.2,2754.1,5.39]
[1740284200704,3.75890843,2754.2,2754.1,5.39]
[1740284201741,0.12809843,2754.2,2754.1,5.39]
[1740284202247,7.26149,2754.3,2754.1,5.39]
[1740284202535,0.12809843,2754.2,2754.1,5.39]
[1740284202907,3.6307,2754.3,2754.1,5.39]
[1740284203153,0.12809843,2754.2,2754.1,5.39]
[1740284203454,0.12809843,2754.2,2754.1,10.34165]
[1740284203616,3.63016,2754.7,2754.2,3.63081]
[1740284203954,0.12804521,2754.6,2754.1,10.34163]
[1740284204305,0.12804521,2754.6,2754.1,4.95163]
[1740284204510,0.12804521,2754.6,2754.2,0.884159]
[1740284205509,0.12804521,2754.6,2754.2,4.514929]
[1740284205855,0.12804521,2754.6,2754.4,3.63054]
[1740284206211,4.20302921,2754.9,2754.4,3.63054]
[1740284206410,7.83292921,2754.9,2754.5,0.71216422]
[1740284206844,11.46291921,2754.9,2754.5,0.71216422]
[1740284207246,7.83292921,2754.9,2754.5,0.71216422]
[1740284207417,4.45573,2755.1,2754.5,5.57677464]
[1740284207809,8.08544,2755.1,2754.5,5.57677464]
[1740284208207,4.45573,2755.1,2754.6,3.63024]
[1740284208610,8.08546,2755.1,2754.6,3.63024]
[1740284209011,4.45573,2755.1,2754.5,1.94643464]
[1740284209253,3.62977,2755.0,2754.5,5.57683464]
[1740284209653,3.40042921,2755.2,2754.6,0.55768346]
[1740284209945,3.40042921,2755.2,2754.7,3.63009]
[1740284210152,3.40042921,2755.2,2754.5,5.14249422]
[1740284210315,3.62965,2755.1,2754.5,8.77282422]
[1740284211259,3.62965,2755.1,2754.6,3.63027]
[1740284213559,0.12772507,2755.0,2754.6,3.63027]
[1740284213766,0.12772507,2755.0,2754.7,0.87727642]
[1740284214167,0.12772507,2755.0,2754.9,4.40599]
[1740284214623,0.8261,2755.3,2754.9,4.40599]
[1740284215122,0.12804557,2755.2,2754.9,0.7761]
[1740284215326,0.8261,2755.3,2754.9,0.7761]
[1740284215327,4.45556,2755.3,2754.9,0.7761]
[1740284215515,0.12804557,2755.2,2754.9,0.7761]
[1740284215718,4.45556,2755.3,2754.9,0.7761]
[1740284215918,0.12804557,2755.2,2754.9,0.7761]
[1740284216135,3.62951,2755.2,2754.9,0.7761]
[1740284216367,0.12800548,2755.1,2754.8,0.259]
[1740284218548,3.62996,2754.9,2754.5,1.0351]
[1740284218857,4.38926,2754.9,2754.5,1.0351]
[1740284219161,0.12788521,2754.8,2754.5,1.0351]
[1740284219959,0.12788521,2754.8,2754.7,0.73669938]
[1740284221134,3.75790521,2754.8,2754.7,0.73669938]
[1740284221338,0.12788521,2754.8,2754.2,6.2206]
[1740284221596,3.63068,2754.3,2754.2,5.39]
[1740284221769,3.63068,2754.3,2754.1,0.259]
[1740284222057,3.63068,2754.3,2754.0,1.82492886]
[1740284222227,3.63045,2754.5,2754.0,5.45597886]
[1740284222428,3.63045,2754.5,2754.1,1.08459789]
[1740284222729,3.63057,2754.4,2754.1,1.08459789]
[1740284224566,3.63091,2754.2,2753.9,0.259]
[1740284224747,3.63089,2754.2,2753.7,0.8306]
[1740284224956,3.63089,2754.2,2753.8,0.259]
[1740284225157,0.1232708,2754.1,2753.8,0.259]
[1740284226178,0.1232708,2754.1,2753.6,12.805]
[1740284226179,3.63121,2753.9,2753.6,7.415]
[1740284226381,3.63147,2753.7,2753.6,7.674]
[1740284226889,4.57940587,2753.7,2753.6,7.415]
[1740284227047,3.63187,2753.4,2753.3,5.39]
[1740284227235,3.63187,2753.4,2753.2,0.259]
[1740284227436,3.7540788,2753.4,2753.2,0.259]
[1740284229463,0.1222088,2753.4,2753.2,0.259]
[1740284230191,3.63221,2753.2,2752.8,5.39]
[1740284230360,3.63221,2753.2,2752.8,6.551285]
[1740284230565,0.12158072,2753.1,2752.8,6.551285]
[1740284231056,3.75385072,2753.1,2752.8,6.551285]
[1740284231564,3.6324,2753.0,2752.8,6.551285]
[1740284231947,0.1214002,2752.9,2752.8,6.551285]
[1740284232278,0.1214002,2752.9,2752.8,0.902285]
[1740284232576,0.1214002,2752.9,2752.6,0.259]
[1740284232893,0.1214002,2752.9,2752.6,3.89185]
[1740284233188,0.12136005,2752.8,2752.6,3.89185]
[1740284233561,7.26441,2753.2,2752.6,3.89185]
[1740284233761,0.12131989,2752.7,2752.6,3.89185]
[1740284233958,3.63236,2753.1,2752.6,0.90847112]
[1740284234175,0.12122634,2752.7,2752.6,0.90847112]
[1740284234492,3.63243,2753.0,2752.6,0.90847112]
[1740284234997,0.12062527,2752.9,2752.6,0.90847112]
[1740284235559,4.52963527,2752.9,2752.5,0.259]
[1740284235944,4.52963527,2752.9,2752.3,11.81822]
[1740284236151,3.63281,2752.7,2752.3,8.91215235]
[1740284236376,0.12044465,2752.6,2752.4,0.259]
[1740284236645,0.12044465,2752.6,2752.4,1.17611524]
[1740284237086,0.12044465,2752.6,2752.3,8.185]
[1740284237381,3.63284,2752.7,2752.3,7.416]
[1740284237582,0.12035771,2752.5,2752.3,7.416]
[1740284237785,3.63284,2752.7,2752.3,7.416]
[1740284237988,0.12031754,2752.4,2752.3,7.416]
[1740284238149,3.63284,2752.7,2752.3,9.085851]
[1740284238351,0.12039787,2752.6,2752.3,9.085851]
[1740284239687,0.12039787,2752.6,2752.3,7.416]
[1740284239990,3.63307,2752.5,2752.3,7.416]
[1740284240172,3.63319,2752.4,2752.3,7.416]
[1740284240489,3.63319,2752.4,2752.0,1.50029919]
[1740284240671,0.12013707,2752.4,2752.0,0.769]
[1740284242190,3.75338707,2752.4,2751.9,1.00288522]
[1740284242404,3.75338707,2752.4,2751.8,3.6339]
[1740284242405,3.63381,2752.0,2751.7,0.8228]
[1740284242755,0.11931449,2751.9,2751.7,0.8228]
[1740284242963,0.8322,2752.1,2751.7,0.8228]
[1740284243198,0.11892663,2751.8,2751.7,0.8228]
[1740284243368,0.8322,2752.1,2751.7,0.8228]
[1740284243574,0.11892663,2751.8,2751.7,1.807506]
[1740284243799,0.8322,2752.1,2751.7,1.807506]
[1740284243996,0.11892663,2751.8,2751.7,1.807506]
[1740284244189,0.8322,2752.3,2751.7,5.441616]
[1740284244384,0.11892663,2751.8,2751.7,5.441616]
[1740284244591,0.8322,2752.3,2751.7,5.441616]
[1740284245102,0.11896027,2752.2,2751.7,1.807506]
[1740284245673,0.11896027,2752.2,2751.8,4.3536706]
[1740284246085,3.63312,2752.5,2751.8,4.3536706]
[1740284246290,0.11895352,2752.1,2751.8,4.3536706]
[1740284246493,3.63312,2752.5,2751.8,4.3536706]
[1740284246691,0.11891335,2752.0,2751.8,4.3536706]
[1740284246891,3.63312,2752.5,2751.9,0.51764706]
[1740284247270,3.63321,2752.4,2751.9,0.51764706]
[1740284247472,0.8322,2752.6,2751.9,0.51764706]
[1740284247671,0.11903387,2752.3,2751.9,4.15139706]
[1740284247898,3.63307,2752.5,2751.9,0.51764706]
[1740284248096,0.1189937,2752.2,2751.9,0.51764706]
[1740284248272,3.63307,2752.5,2751.9,0.51764706]
[1740284248480,0.11895352,2752.1,2751.9,0.51764706]
[1740284248680,4.46517,2752.6,2752.0,0.48712877]
[1740284249604,3.63309,2752.5,2752.0,0.48712877]
[1740284249970,4.46514,2752.6,2752.0,0.48712877]
[1740284250475,6.0722,2753.1,2752.3,3.63332]
[1740284250676,6.0722,2753.1,2752.3,4.17912247]
[1740284250907,9.70447,2753.1,2752.5,3.63296]
[1740284251105,4.46447,2753.1,2752.5,3.63296]
[1740284251401,0.10430482,2753.0,2752.5,3.63296]
[1740284251646,0.10430482,2753.0,2752.3,0.54580247]
[1740284251908,0.10430482,2753.0,2752.7,3.6327]
[1740284252111,0.10430482,2753.0,2752.9,3.63253]
[1740284252405,0.8322,2753.6,2753.0,3.63228]
[1740284252569,0.8322,2753.6,2753.1,3.63226]
[1740284253383,0.8322,2753.6,2753.2,3.63207]
[1740284254602,0.8322,2753.6,2753.1,0.8228]
[1740284254930,0.10518174,2753.5,2753.1,0.8228]
[1740284256002,0.10518174,2753.5,2753.1,4.45506]
[1740284256331,0.10518174,2753.5,2753.1,5.289795]
[1740284257321,0.10518174,2753.5,2753.3,3.6319]
[1740284257537,0.10518174,2753.5,2753.1,5.289765]
[1740284257733,7.26284,2753.8,2753.1,5.289765]
[1740284258027,3.63148,2753.7,2753.1,5.289765]
[1740284258228,3.73753179,2753.7,2753.1,5.289765]
[1740284260034,3.73753179,2753.7,2753.2,0.5549765]
[1740284260731,0.10605179,2753.7,2753.2,0.5549765]
[1740284260899,0.10605179,2753.7,2753.2,4.1870865]
[1740284261300,0.10605179,2753.7,2753.2,0.5549765]
[1740284261500,3.73756179,2753.7,2753.2,0.5549765]
[1740284262934,3.63161,2753.6,2753.2,0.5549765]
[1740284263143,0.10613303,2753.5,2753.1,1.657535]
[1740284263736,3.73794303,2753.5,2753.1,0.834735]
[1740284264041,0.8111,2753.4,2753.1,0.834735]
[1740284264418,0.10602599,2753.3,2753.1,0.834735]
[1740284266342,0.10602599,2753.3,2753.2,0.8359445]
[1740284266543,0.10602599,2753.3,2753.2,4.4680745]
[1740284266845,4.21152921,2753.9,2753.4,3.63179]
[1740284267349,0.10621327,2753.8,2753.4,7.26357]
[1740284267710,0.10621327,2753.8,2753.4,3.63174]
[1740284267948,0.10621327,2753.8,2753.2,5.2405445]
[1740284268246,0.10621327,2753.8,2753.3,0.60752795]
[1740284268610,0.10621327,2753.8,2753.4,3.63178]
[1740284268823,0.10621327,2753.8,2753.4,7.26356]
[1740284269122,0.10621327,2753.8,2753.4,3.63178]
[1740284270461,0.10621327,2753.8,2753.4,7.26357]
[1740284270765,0.10621327,2753.8,2753.6,3.63149]
[1740284270915,7.03118921,2754.3,2753.7,4.40407]
[1740284270916,0.8111,2754.3,2753.7,4.40407]
[1740284271259,0.09906148,2754.2,2753.9,3.63115]
[1740284271554,0.8111,2754.3,2753.7,4.40398]
[1740284271848,0.09906148,2754.2,2753.7,1.212998]
[1740284272145,0.09906148,2754.2,2753.7,4.844458]
[1740284272447,3.63105,2754.1,2753.5,0.7726]
[1740284272649,3.63105,2754.1,2753.5,4.40426]
[1740284272820,3.73022158,2754.0,2753.5,0.7726]
[1740284273026,0.8111,2753.9,2753.5,0.7726]
[1740284273220,0.8111,2753.9,2753.4,9.76571784]
[1740284273415,0.09900135,2753.8,2753.4,11.27132912]
[1740284273817,0.09900135,2753.8,2753.5,3.63172]
[1740284277467,0.09900135,2753.8,2753.7,3.63147]
[1740284277619,0.09900135,2753.8,2753.7,4.39557]
[1740284277819,0.7529,2754.3,2753.9,3.6312]
[1740284278235,0.09916181,2754.2,2753.9,3.6312]
[1740284278567,0.7529,2754.3,2753.9,3.6312]
[1740284278914,0.09895893,2754.2,2753.9,3.6312]
[1740284279122,0.7529,2754.3,2753.9,7.2623]
[1740284279335,0.09895893,2754.2,2753.9,3.6311]
[1740284279533,0.7529,2754.3,2753.9,3.6311]
[1740284279826,0.09895893,2754.2,2753.9,3.6311]
[1740284280155,0.7529,2754.3,2753.9,3.6311]
[1740284280359,0.09895893,2754.2,2753.9,3.6311]
[1740284280532,0.7529,2754.3,2753.9,3.6311]
[1740284280942,0.09895893,2754.2,2753.9,4.45966]
[1740284281153,0.7529,2754.3,2753.9,4.45966]
[1740284281351,3.40042921,2754.5,2754.0,3.63104]
[1740284281551,4.19132921,2754.5,2754.0,3.63104]
[1740284281773,0.7909,2754.5,2754.1,3.63085]
[1740284281978,0.09923311,2754.4,2754.1,3.63085]
[1740284282174,0.09923311,2754.4,2754.2,3.63078]
[1740284283294,0.09923311,2754.4,2754.1,0.74359011]
[1740284283588,0.09923311,2754.4,2754.1,4.23172101]
[1740284284785,0.09923311,2754.4,2754.1,0.60086101]
[1740284285095,0.09923311,2754.4,2754.2,3.6308]
[1740284285254,0.09923311,2754.4,2754.2,7.26154]
[1740284285469,0.7909,2754.7,2754.2,7.26154]
[1740284285675,0.09556484,2754.3,2754.2,3.63074]
[1740284286002,0.7909,2754.7,2754.3,3.63061]
[1740284286598,0.7909,2754.9,2754.6,3.63024]
[1740284286966,0.7909,2754.9,2754.5,3.63032]
[1740284287174,0.7909,2754.9,2754.6,3.63027]
[1740284288006,3.40042921,2755.1,2754.6,3.63027]
[1740284288007,4.19132921,2755.1,2754.6,3.63027]
[1740284288167,4.19132921,2755.1,2754.6,3.63021]
[1740284288371,4.19132921,2755.1,2754.7,3.63002]
[1740284289117,0.09619323,2755.0,2754.7,3.63002]
[1740284289756,0.09619323,2755.0,2754.8,3.62999]
[1740284290105,7.42029,2755.3,2754.8,3.62999]
[1740284290342,0.09615314,2754.9,2754.8,3.62999]
[1740284290834,3.7909,2755.3,2754.9,3.62978]
[1740284290994,0.09615314,2754.9,2754.8,4.43549]
[1740284291193,7.42028,2755.3,2754.8,4.43549]
[1740284291535,0.0960952,2755.2,2754.8,3.62999]
[1740284291837,7.42028,2755.3,2754.8,3.62999]
[1740284291986,0.09605512,2755.1,2754.8,3.62999]
[1740284292185,7.42028,2755.3,2754.8,4.5068171]
[1740284292479,7.42028,2755.3,2754.8,3.62999]
[1740284292681,0.09629552,2755.2,2754.8,3.62999]
[1740284292993,7.42028,2755.3,2754.8,3.62999]
[1740284293338,0.09629552,2755.2,2754.8,3.62999]
[1740284293627,11.04972,2755.3,2754.8,3.62999]
[1740284293830,4.42028,2755.3,2754.8,4.27376409]
[1740284294032,0.09629552,2755.2,2754.8,4.27376409]
[1740284294389,4.42028,2755.3,2754.8,4.27372409]
[1740284294625,0.09629552,2755.2,2754.8,7.90367409]
[1740284294830,0.7909,2755.3,2754.9,3.62986]
[1740284295035,0.09625544,2755.1,2754.9,3.62986]
[1740284295238,0.09625544,2755.1,2754.9,0.79035841]
[1740284295402,4.4203,2755.3,2754.9,0.79035841]
[1740284295605,0.09640919,2755.0,2754.9,0.79035841]
[1740284295806,4.4203,2755.3,2754.9,0.79035841]
[1740284295999,0.09640919,2755.0,2754.9,4.42016841]
[1740284296192,4.42027,2755.3,2754.9,4.42016841]
[1740284296533,0.09648934,2755.2,2754.9,4.42016841]
[1740284296760,0.09648934,2755.2,2755.0,0.50639425]
[1740284296915,0.7909,2755.3,2755.0,0.50639425]
[1740284297090,0.09644926,2755.1,2755.0,0.50639425]
[1740284297291,4.42027,2755.3,2755.0,0.50639425]
[1740284297523,0.09644926,2755.1,2755.0,0.50639425]
[1740284297701,0.7909,2755.3,2755.0,0.50639425]
[1740284297902,0.09745233,2755.1,2755.0,0.50639425]
[1740284298100,0.7612,2755.5,2755.0,1.33959425]
[1740284298331,0.7612,2755.7,2755.2,3.62941]
[1740284298694,0.7612,2755.7,2755.3,3.62936]
[1740284299924,0.09414414,2755.6,2755.3,3.62936]
[1740284300127,0.09414414,2755.6,2755.0,0.8332]
[1740284300329,3.62912,2755.5,2755.0,4.4629]
[1740284300544,0.09414414,2755.6,2755.1,4.977873]
[1740284300726,0.09406401,2755.4,2755.1,4.977873]
[1740284300940,0.09410408,2755.5,2755.1,4.977873]
[1740284301119,0.09402395,2755.3,2755.1,4.977873]
[1740284301318,0.7612,2755.7,2755.1,1.348273]
[1740284301517,0.09430464,2755.2,2755.1,1.348273]
[1740284302032,3.62922,2755.5,2755.1,1.348273]
[1740284302198,0.7612,2755.7,2755.1,1.607273]
[1740284302401,3.62918,2755.5,2755.1,1.607273]
[1740284302705,0.09438478,2755.4,2755.1,1.607273]
[1740284303622,0.09438478,2755.4,2755.1,5.236863]
[1740284303932,0.7612,2755.7,2755.2,4.2364863]
[1740284304143,0.09456526,2755.3,2755.2,0.6070063]
[1740284304331,3.62904,2755.6,2755.2,0.6070063]
[1740284304638,0.09456526,2755.3,2755.2,0.6070063]
[1740284304847,0.09461866,2755.5,2755.2,0.6070063]
[1740284305136,0.09453853,2755.3,2755.2,0.6070063]
[1740284305336,3.62904,2755.6,2755.2,0.6070063]
[1740284305540,0.09453853,2755.3,2755.2,0.6070063]
[1740284305737,3.62904,2755.6,2755.2,0.6070063]
[1740284305942,0.09453853,2755.3,2755.2,0.6070063]
[1740284306115,3.62904,2755.6,2755.2,0.6070063]
[1740284306755,0.09461866,2755.5,2755.2,0.6070063]
[1740284307351,0.09461866,2755.5,2755.3,4.87644463]
[1740284307647,4.41052,2755.8,2755.3,4.87644463]
[1740284307943,0.09122676,2755.4,2755.3,4.87644463]
[1740284308160,3.62884,2755.7,2755.3,1.24715463]
[1740284308365,0.09122676,2755.4,2755.3,0.7976]
[1740284308520,3.62884,2755.7,2755.3,0.7976]
[1740284308717,0.09128689,2755.4,2755.3,0.7976]
[1740284308923,3.62904,2755.6,2755.3,0.7976]
[1740284309265,0.7817,2755.8,2755.3,0.7976]
[1740284309428,0.09132696,2755.5,2755.3,1.7013236]
[1740284309760,3.62885,2755.7,2755.3,1.7013236]
[1740284309969,0.09128689,2755.4,2755.3,1.7013236]
[1740284310168,3.62885,2755.7,2755.3,1.7013236]
[1740284310368,0.09128689,2755.4,2755.3,1.7013236]
[1740284310970,3.62885,2755.7,2755.3,1.7013236]
[1740284311441,0.09119822,2755.6,2755.3,1.7013236]
[1740284311639,0.09119822,2755.6,2755.4,0.53308036]
[1740284311844,0.7817,2755.8,2755.4,4.16229036]
[1740284312053,0.09132696,2755.5,2755.4,4.16229036]
[1740284312233,0.7817,2755.8,2755.4,4.16229036]
[1740284312440,0.09132696,2755.5,2755.4,0.53308036]
[1740284312667,0.7817,2755.8,2755.4,4.16231036]
[1740284312869,0.7817,2755.8,2755.5,0.49599104]
[1740284313681,7.25735,2755.9,2755.5,0.49599104]
[1740284314141,3.62864,2755.9,2755.5,0.49599104]
[1740284314348,3.62872,2755.8,2755.5,0.49599104]
[1740284314658,0.09140708,2755.7,2755.5,0.49599104]
[1740284314853,3.62891,2755.7,2755.4,0.53308036]
[1740284315182,0.09136702,2755.6,2755.4,0.53308036]
[1740284317378,0.09136702,2755.6,2755.4,4.16224036]
[1740284317674,7.81069921,2756.0,2755.4,4.16224036]
[1740284317877,3.62861,2755.9,2755.5,1.06088404]
[1740284318176,7.25727,2755.9,2755.5,1.06088404]
[1740284318376,0.08740705,2755.8,2755.5,1.06088404]
[1740284318771,3.71612705,2755.8,2755.5,1.06088404]
[1740284323885,0.08740705,2755.8,2755.7,0.7656]
[1740284324044,7.02871921,2756.2,2755.7,1.3111444]
[1740284324045,3.62845,2756.0,2755.7,1.3111444]
[1740284324379,3.62871,2755.8,2755.7,0.7656]
[1740284324566,3.62871,2755.8,2755.5,1.82648404]
[1740284324781,3.71338254,2755.8,2755.5,1.82648404]
[1740284325152,0.08467254,2755.8,2755.5,1.82648404]
[1740284325565,8.03558,2756.0,2755.5,1.82648404]
[1740284325890,8.03558,2756.0,2755.6,0.59887444]
[1740284326048,0.0847126,2755.9,2755.6,0.59887444]
[1740284326383,3.7133226,2755.9,2755.6,0.59887444]
[1740284329056,0.0847126,2755.9,2755.6,0.59887444]
[1740284329790,0.0847126,2755.9,2755.7,0.7656]
[1740284330385,3.7133126,2755.9,2755.7,0.7656]
[1740284332681,1.73054709,2755.9,2755.7,0.7656]
[1740284333358,0.0847126,2755.9,2755.7,0.7656]
[1740284333695,1.73054709,2755.9,2755.7,0.7656]
[1740284334993,5.35913709,2755.9,2755.7,0.7656]
[1740284338295,1.73054709,2755.9,2755.7,0.7656]
[1740284339702,0.08177103,2755.8,2755.7,0.7656]
[1740284341605,0.08177103,2755.8,2755.6,0.59887444]
[1740284342805,0.08177103,2755.8,2755.5,1.89298404]
[1740284344700,0.08177103,2755.8,2755.3,5.39]
[1740284344701,0.7561,2755.6,2755.3,5.39]
[1740284344910,1.64583449,2755.4,2755.3,5.39]
[1740284345390,5.35674203,2755.4,2755.3,5.39]
[1740284346806,5.35674203,2755.4,2755.0,5.649]
[1740284347009,5.35674203,2755.4,2755.0,6.73344096]
[1740284348320,1.64583449,2755.2,2755.0,5.649]
[1740284348803,0.08129673,2755.1,2755.0,5.649]
[1740284349173,0.7561,2755.3,2755.0,5.649]
[1740284349904,0.08132345,2755.2,2755.0,5.649]
[1740284350066,0.7561,2755.3,2755.0,5.649]
[1740284350275,0.08132345,2755.2,2755.0,6.73343996]
[1740284350802,0.08128337,2755.1,2755.0,6.73343996]
[1740284351205,1.64583449,2755.4,2755.1,4.46172]
[1740284351906,1.64583449,2755.6,2755.2,3.6295]
[1740284352070,1.64583449,2755.6,2755.3,0.44616]
[1740284352277,1.64583449,2755.4,2755.1,0.8321]
[1740284353506,5.27510449,2755.4,2755.1,0.8321]
[1740284353807,1.64583449,2755.2,2754.9,0.73341956]
[1740284354015,1.64583449,2755.2,2754.9,0.259]
[1740284355506,1.64583449,2755.4,2755.0,0.8249]
[1740284355711,1.64583449,2755.4,2755.1,3.62961]
[1740284356413,1.64583449,2755.6,2755.1,3.62961]
[1740284356861,1.64583449,2755.6,2755.2,3.62946]
[1740284357327,1.64583449,2755.6,2755.4,4.45412]
[1740284357612,1.64583449,2755.6,2755.4,8.08327]
[1740284357813,1.64583449,2755.6,2755.4,5.262377]
[1740284358179,1.64583449,2755.6,2755.4,1.633227]
[1740284358618,9.43300881,2755.9,2755.4,1.633227]
[1740284358818,4.19300881,2755.9,2755.4,1.633227]
[1740284359509,0.0813646,2755.8,2755.4,1.633227]
[1740284360319,0.0813646,2755.8,2755.5,4.22649431]
[1740284363231,0.0813646,2755.8,2755.5,0.59747431]
[1740284365524,7.02345881,2756.0,2755.5,0.59747431]
[1740284365824,0.08141608,2755.7,2755.5,4.22656431]